[Event "Maharashtra Challenge Matches 2023"]
[Site "Nagpur"]
[Date "2023.06.01"]
[Round "1.1"]
[White "Vidit, Santosh Gujrathi"]
[Black "Svidler, Peter"]
[Result "1-0"]
[Annotator "TA"]
[ECO "A20"]
[WhiteElo "2731"]
[BlackElo "2683"]
[PlyCount "59"]
[EventDate "2023.06.03"]
[EventType "match"]
[EventCountry "IND"]
[SourceTitle "playchess.com"]
[Source "ChessBase"]
[SourceQuality "1"]
[TimeControl "40/5400+30:1800+30"]

{[%evp 9,59,21,33,31,31,31,35,31,21,27,33,31,38,36,34,24,32,28,37,35,75,76,124,121,117,123,124,125,125,120,113,119,119,118,119,122,113,122,116,117,245,229,248,245,238,197,249,259,270,266,265,229]} 1. c4 {[%emt 0:00:51]} e5 {[%emt 0:00:45]} 2. g3 {[%emt 0:00:20]} d6 {[%emt 0:01:31][%cal Bd7d6,Bd6e5,Be5e4][%mdl 32]} 3. Nc3 {[%emt 0:00:42]} f5 {[%emt 0:00:08]} 4. d4 {[%emt 0:03:21]} Be7 {[%emt 0:00:14]} 5. Bh3 {[%emt 0:03:16]} Na6 {[%emt 0:01:30]} 6. dxe5 {[%emt 0:13:46] A21: English Opening: 1...e5 2 Nc3.} dxe5 {[%emt 0:00:15]} 7. Qxd8+ {[%emt 0:00:09]} Bxd8 {[%emt 0:00:03]} 8. Nf3 {[%emt 0:00:26] White is slightly better.} e4 {[%emt 0:02:30]} 9. Nd4 {[%emt 0:00:20]} g6 {[%emt 0:00:21]} 10. Bf4 {[%emt 0:08:06]} c6 {[%emt 0:03:58]} 11. O-O-O {[%emt 0:02:14][%cal Od4c6]} Nf6 {[%emt 0:11:37]} 12. f3 {[%emt 0:03:10]} exf3 {[%emt 0:00:46]} 13. exf3 {[%emt 0:00:32]} Kf7 {[%emt 0:02:31]} 14. Rhe1 {[%emt 0:03:17] [#]} Be7 $146 {[%emt 0:13:50]} ({Predecessor:} 14... Bc7 15. Bxc7 Nxc7 16. f4 Be6 17. Nf3 {½-½ Vakhidov,J (2533)-Yakubboev,N (2605) Tashkent zt 3.4 2021 (6)}) 15. c5 {[%emt 0:15:12]} Bxc5 {[%emt 0:28:56]} ({Better is} 15... Nd5) 16. Bf1 $1 $16 {[%emt 0:00:22]} Re8 {[%emt 0:05:16] Threatens to win with ...Rxe1.} 17. Bc4+ {[%emt 0:05:25]} Kg7 {[%emt 0:00:13] aiming for ...Rxe1.} 18. Be5 {[%emt 0:03:01] And now Bxf6+ would win.} Nc7 {[%emt 0:01:05][%mdl 64] [#] Deflection} 19. g4 $1 {[%emt 0:09:35]} ({Reject} 19. Bxc7 $6 Bxd4 20. Rxe8 Nxe8 21. Rxd4 Nxc7 $11) 19... Rxe5 {[%emt 0:06:44]} 20. Rxe5 {[%emt 0:00:24]} Nd7 {[%emt 0:00:02]} 21. Ree1 $36 {[%emt 0:03:04][%mdl 2048] White is on the roll. White is much more active.} Nb6 {[%emt 0:00:21][%csl LRc4,LRg4] [#]} 22. Ne6+ $1 {[%emt 0:02:01]} Bxe6 {[%emt 0:00:13]} 23. Bxe6 {[%emt 0:00:02]} Kf6 {[%emt 0:09:28]} 24. Bb3 {[%emt 0:00:48]} Rf8 {[%emt 0:01:08] This move loses the game for Black.} (24... Re8 $16 25. Rxe8 Nxe8) 25. h4 $18 {[%emt 0:01:12]} h6 {[%emt 0:00:04]} 26. f4 {[%emt 0:02:39]} Re8 {[%emt 0:03:21]} 27. g5+ {[%emt 0:00:59]} Kg7 {[%emt 0:01:06]} (27... hxg5 {was necessary.} 28. hxg5+ Kg7 29. Rxe8 Nxe8) 28. Rxe8 {[%emt 0:03:10]} Nxe8 {[%emt 0:00:02]} 29. Rd8 {[%emt 0:01:14]} Nd6 {[%emt 0:00:09]} 30. Kc2 {[%emt 0:02:38] Weighted Error Value: White=0.00 (flawless) /Black=0.15 (very precise)} 1-0

[Event "Maharashtra Challenge Matches 2023"]
[Site "Nagpur"]
[Date "2023.06.01"]
[Round "1.1"]
[White "Short, Nigel D"]
[Black "Sadhwani, Raunak"]
[Result "0-1"]
[Annotator "TA"]
[ECO "B47"]
[WhiteElo "2597"]
[BlackElo "2627"]
[PlyCount "56"]
[EventDate "2023.06.03"]
[EventType "match"]
[EventCountry "IND"]
[SourceTitle "playchess.com"]
[Source "ChessBase"]
[SourceQuality "1"]
[TimeControl "40/5400+30:1800+30"]

{[%evp 13,55,23,45,19,1,27,20,0,0,0,0,0,0,-24,-48,-82,-24,-164,-163,-183,-152,-193,-177,-164,-158,-132,-128,-192,-211,-211,-200,-341,-326,-348,-333,-613,-575,-579,-608,-583,-594,-726,-713,-29999]} 1. e4 {[%emt 0:00:08]} c5 {[%emt 0:00:05]} 2. Nf3 {[%emt 0:00:06]} Nc6 {[%emt 0:00:04]} 3. d4 {[%emt 0:00:41]} cxd4 {[%emt 0:00:07]} 4. Nxd4 {[%emt 0:00:06]} e6 {[%emt 0:00:05]} 5. Nc3 {[%emt 0:00:28]} Qc7 {[%emt 0:00:08]} 6. g3 {[%emt 0:03:45]} a6 {[%emt 0:01:34]} 7. Bg2 {[%emt 0:00:31]} h5 {[%emt 0:00:10]} 8. f4 {[%emt 0:02:46] B47: Sicilian: Taimanov: 5 Nc3 Qc7 6 f4, 6 g3 and 6 Be2.} b5 {[%emt 0:07:49] [#]} 9. Be3 $146 {[%emt 0:29:13]} ({Predecessor:} 9. Nb3 Bb7 10. Be3 Na5 11. Nxa5 Qxa5 12. a3 Nf6 13. O-O Qc7 14. h3 b4 15. axb4 Bxb4 {1-0 Shkuran,D (2386)-Ivanenko,O (2146) Lvov Tradition 03 2015 (8)}) 9... Bb7 {[%emt 0:01:31]} 10. Qd3 {[%emt 0:00:23] The position is equal.} (10. Nb3 $5 {[%cal Rb3c5]}) 10... Rc8 {[%emt 0:08:18]} 11. O-O-O {[%emt 0:02:05]} Nf6 {[%emt 0:12:47]} 12. Kb1 {[%emt 0:04:00]} Na5 {[%emt 0:09:41][%cal Bc6a5,Ba5c4,Bc4d6,Bd6e4][%mdl 32]} 13. Rhf1 {[%emt 0:30:43]} Nc4 {[%emt 0:04:40][%cal Oc4b2]} 14. Bg1 {[%emt 0:08:48]} b4 {[%emt 0:09:01] Black is more active.} (14... Bb4 $17 {[%cal Oc4b2] White must now prevent ...Nxb2!} 15. Nce2 Nd6) 15. Nce2 {[%emt 0:00:27] White does not recover from this.} (15. Na4 $11) 15... Nd6 $19 {[%emt 0:00:54]} 16. Bf3 {[%emt 0:05:53] e5 would be deadly.} Ndxe4 {[%emt 0:01:19]} (16... Bxe4 17. Bxe4 Ndxe4 18. Nb3 $17) (16... Nfxe4 17. Nb3 $17) 17. Nb3 {[%emt 0:00:06] [#]} a5 $1 {[%emt 0:17:09][%cal Ba6a5,Ba5a4][%mdl 32]} 18. Ned4 {[%emt 0:00:29]} Bd5 {[%emt 0:03:10]} 19. Rfe1 {[%emt 0:03:32][%cal Rf3e4]} a4 {[%emt 0:03:15]} 20. Nb5 {[%emt 0:00:05]} (20. Nd2 $17 {is a better defense.} Nc5 21. Qe2) 20... Qb7 {[%emt 0:07:55]} (20... Qc6 21. Na7 Qa8 22. Nxc8 axb3 23. axb3 Qxc8 24. Bxe4 (24. Rxe4 Nxe4 25. Bxe4 Bxe4 $14) 24... Nxe4 25. Rxe4 Bxe4 26. Qxe4 $11) 21. Na5 {[%emt 0:00:30]} Qa8 {[%emt 0:00:09]} 22. Bb6 {[%emt 0:01:17]} (22. Ka1 $142) 22... Be7 {[%emt 0:03:32] aiming for ...0-0.} 23. Bxe4 {[%emt 0:05:27]} ({Reject} 23. Nc7+ Rxc7 24. Bxe4 (24. Bxc7 $2 {perishes.} Nc5 $19) 24... Rc8 25. Bxd5 Nxd5 $19) 23... Bxe4 {[%emt 0:00:12]} 24. Nd6+ $2 {[%emt 0:00:02]} (24. Nc7+ Rxc7 25. Rxe4) 24... Bxd6 {[%emt 0:00:10][%mdl 64] Deflection} 25. Qxd6 {[%emt 0:00:03][%cal Ob6c5] Bc5! is the strong threat.} Bxc2+ {[%emt 0:00:08]} (25... Rxc2 $2 {too greedy.} 26. Ka1 Qc8 27. Bd4 $19 (27. Qxb4 $2 Bf3 $19)) 26. Ka1 {[%emt 0:00:01]} Bxd1 {[%emt 0:00:09]} 27. Rxd1 {[%emt 0:00:03] [#]} Qd5 {[%emt 0:00:28][%mdl 512]} 28. Rxd5 {[%emt 0:01:56]} (28. Qxd5 Nxd5) 28... Rc1# {[%emt 0:00:03] Ingenious play by Sadhwani!   Weighted Error Value: White=0.72/Black=0.06 (flawless)} 0-1

[Event "Maharashtra Challenge Matches 2023"]
[Site "Nagpur"]
[Date "2023.06.02"]
[Round "2.1"]
[White "Svidler, Peter"]
[Black "Vidit, Santosh Gujrathi"]
[Result "1-0"]
[Annotator "TA"]
[ECO "D32"]
[WhiteElo "2683"]
[BlackElo "2731"]
[PlyCount "77"]
[EventDate "2023.06.03"]
[EventType "match"]
[EventCountry "IND"]
[SourceTitle "playchess.com"]
[Source "ChessBase"]
[SourceQuality "1"]
[TimeControl "40/5400+30:1800+30"]

{[%evp 12,77,35,35,47,23,19,9,27,30,72,98,83,75,62,15,18,27,71,0,24,23,20,28,26,32,39,23,39,28,28,32,44,36,36,35,37,28,31,40,45,35,100,88,157,80,83,77,87,77,945,937,1167,1078,1215,1215,3592,2462,29965,29967,29969,29970,29974,29976,29975,29973,29977,29978]} 1. c4 {[%emt 0:00:12]} e6 {[%emt 0:00:52]} 2. Nc3 {[%emt 0:00:16]} d5 {[%emt 0:00:38]} 3. d4 {[%emt 0:00:05]} c5 {[%emt 0:02:43]} 4. cxd5 {[%emt 0:00:42]} exd5 {[%emt 0:00:14]} 5. Nf3 {[%emt 0:04:27]} Nf6 {[%emt 0:00:14]} 6. Bg5 {[%emt 0:07:20]} Be6 {[%emt 0:00:27]} 7. e3 {[%emt 0:06:38]} c4 {[%emt 0:01:55] D32: Tarrasch Defence: Sidelines and lines without g3.} 8. g3 $5 {[%emt 0:07:20][%mdl 4] Exploring less charted territory.} Bb4 {[%emt 0:04:09]} 9. Bg2 {[%emt 0:14:31] [#]} Bxc3+ $146 {[%emt 0:09:40] The position is equal.} ({Predecessor:} 9... O-O 10. O-O Bxc3 11. bxc3 Nbd7 12. Nd2 Qa5 13. Qc2 h6 14. Bf4 b5 15. Rfb1 Nb6 {½-½ Bykhovsky,A (2496)-Batsiashvili,N (2457) Titled Tuesday intern op 30th June blitz 2020 (3)}) 10. bxc3 {[%emt 0:00:07]} Qa5 {[%emt 0:00:12]} 11. Bxf6 {[%emt 0:00:17]} Qxc3+ {[%emt 0:00:39]} 12. Nd2 $1 {[%emt 0:00:05][%cal Bf3d2,Bd2c4,Bc4e3][%mdl 32]} gxf6 {[%emt 0:00:10]} 13. O-O {[%emt 0:00:04]} (13. Rc1 $14 Qb2 14. e4 Qxd4 15. exd5 Bxd5 16. O-O) 13... Nc6 $11 {[%emt 0:22:40]} 14. Rc1 {[%emt 0:07:44]} Qd3 {[%emt 0:16:47]} 15. e4 {[%emt 0:00:39]} (15. Qe1 $1 $16) 15... O-O-O {[%emt 0:06:31]} (15... dxe4 $5 16. Bxe4 (16. Nxe4 Nxd4 17. Nxf6+ Kf8 $11) 16... Qxd4 $11) 16. exd5 {[%emt 0:00:42]} Bxd5 {[%emt 0:00:11] [#]} 17. Nxc4 $1 {[%emt 0:00:19][%mdl 64] Discovered Attack} Qxd1 {[%emt 0:13:06]} 18. Rfxd1 {[%emt 0:00:23] Black must now prevent Bxd5.} Kb8 {[%emt 0:00:09]} 19. Ne3 {[%emt 0:03:05]} Bxg2 {[%emt 0:00:49]} 20. Kxg2 {[%emt 0:00:05]} Nxd4 {[%emt 0:03:22]} 21. Ng4 {[%emt 0:18:21]} Rd6 {[%emt 0:00:52] [#]} 22. Nxf6 $1 {[%emt 0:06:31][%mdl 64] Deflection} Rxf6 {[%emt 0:00:09]} 23. Rxd4 {[%emt 0:00:06]} Rc8 {[%emt 0:00:06]} 24. Rxc8+ {[%emt 0:00:24]} Kxc8 $14 {[%emt 0:00:06][%mdl 4096] Endgame KR-KR} 25. g4 {[%emt 0:01:19]} Kc7 {[%emt 0:03:43]} 26. g5 {[%emt 0:01:36]} Rg6 {[%emt 0:01:11]} (26... Rf5 $1 $14) 27. h4 $16 {[%emt 0:01:12][%cal Bh2h4,Bh4h5,Bh5h6,Bh6h7][%mdl 32]} h6 {[%emt 0:06:13] [#]} (27... b5 $142) 28. f4 $1 {[%emt 0:01:43] Threatens to win with h5.} hxg5 {[%emt 0:05:50]} 29. fxg5 {[%emt 0:00:39] Rf4 would be deadly.} f6 {[%emt 0:00:23]} 30. Kg3 {[%emt 0:04:47] Strongly threatening Kg4.} ({Don't play} 30. Rc4+ $6 Kd7 $11) 30... fxg5 $2 {[%emt 0:00:25][%mdl 8192] [#] Loses the game.} (30... b5 $16) 31. h5 $1 $18 {[%emt 0:00:05]} Rg8 {[%emt 0:00:54]} 32. Kg4 {[%emt 0:00:11]} Kc6 {[%emt 0:00:28]} 33. h6 {[%emt 0:00:37]} b5 {[%emt 0:00:10]} 34. Kh5 {[%emt 0:00:08]} a5 {[%emt 0:00:14]} 35. h7 {[%emt 0:01:58][%mdl 64] Deflection. White mates.} Rb8 {[%emt 0:00:34]} 36. Rg4 {[%emt 0:00:28]} b4 {[%emt 0:00:57]} 37. Rxg5 {[%emt 0:00:36]} Rh8 {[%emt 0:00:45]} 38. Kg6 {[%emt 0:00:07]} ({Weaker is} 38. Rxa5 Rxh7+ 39. Kg4 Rh2 $11) 38... a4 {[%emt 0:00:30]} 39. Kg7 {[%emt 0:00:30] Weighted Error Value: White=0.06 (flawless) /Black=0.36} 1-0

[Event "Maharashtra Challenge Matches 2023"]
[Site "Nagpur"]
[Date "2023.06.02"]
[Round "2.1"]
[White "Sadhwani, Raunak"]
[Black "Short, Nigel D"]
[Result "0-1"]
[Annotator "TA"]
[ECO "C18"]
[WhiteElo "2627"]
[BlackElo "2597"]
[PlyCount "70"]
[EventDate "2023.06.03"]
[EventType "match"]
[EventCountry "IND"]
[SourceTitle "playchess.com"]
[Source "ChessBase"]
[SourceQuality "1"]
[TimeControl "40/5400+30:1800+30"]

{[%evp 14,70,52,44,40,45,40,18,31,31,36,43,38,33,31,0,10,-12,-20,-8,-23,-91,-117,-96,-114,-96,-114,-103,-115,-141,-120,-93,-100,-113,-76,-95,-56,-34,-34,-34,-30,-64,-57,-113,-18,-24,0,-16,-22,-22,-14,-14,-16,-276,-258,-786,-770,-969,-942]} 1. e4 {[%emt 0:00:03]} e6 {[%emt 0:00:14]} 2. d4 {[%emt 0:00:06]} d5 {[%emt 0:00:05]} 3. Nc3 {[%emt 0:00:02]} Bb4 {[%emt 0:00:18]} 4. e5 {[%emt 0:00:03]} c5 {[%emt 0:00:10]} 5. a3 {[%emt 0:00:03]} Bxc3+ 6. bxc3 {[%emt 0:00:03]} Nc6 {[%emt 0:00:47]} 7. Qg4 {[%emt 0:00:47]} g6 {[%emt 0:00:16]} 8. h4 {[%emt 0:00:12][%cal Bh2h4,Bh4h5][%mdl 32]} ({Reject} 8. dxc5 Nxe5 9. Bb5+ Bd7 $15) 8... Qa5 {[%emt 0:02:26] C18: French: 3 Nc3 Bb4: Main line: 7 h4 and 7 Qg4.} 9. Bd2 {[%emt 0:08:44]} Qa4 {[%emt 0:01:41][%csl LRc2,LRd4]} 10. h5 {[%emt 0:14:18] And now hxg6 would win.} Bd7 {[%emt 0:09:11] The position is equal.} 11. Nf3 {[%emt 0:06:58]} O-O-O {[%emt 0:03:25] [#]} 12. Qf4 $146 {[%emt 0:14:17]} ({Predecessor:} 12. hxg6 fxg6 13. Ng5 h5 14. Qh3 Nh6 15. Nxe6 cxd4 16. Nc5 Bxh3 17. Nxa4 Bf5 18. Bg5 Rde8 19. cxd4 Bxc2 20. Bxh6 Bxa4 {½-½ Koch,D (2150)-Brittner,S (2285) Luxembourg-chT 1314 2013 (6)}) 12... h6 {[%emt 0:03:53]} 13. dxc5 {[%emt 0:09:11]} Qxc2 {[%emt 0:01:07]} 14. Nd4 {[%emt 0:02:00]} ({But not} 14. Qxf7 Nge7 15. Qf4 g5 $11) 14... Qb2 {[%emt 0:04:32]} 15. Rc1 {[%emt 0:00:30]} (15. Rd1 $5 {[%cal Rd4c6]} g5 16. Qe3 $11) 15... g5 {[%emt 0:02:02]} 16. Qe3 {[%emt 0:01:05] aiming for Bd3.} Nge7 {[%emt 0:04:22][%cal Bg8e7,Be7f5,Bf5d6][%mdl 32]} (16... Qxa3 $2 17. Nb5 Qa2 18. Bd3 $18) 17. Nb5 {[%emt 0:17:42] [#]} (17. g4 $11) 17... Nf5 $1 $17 {[%emt 0:01:05]} 18. Nd6+ {[%emt 0:00:07]} Kb8 {[%emt 0:00:56]} 19. Qe2 {[%emt 0:00:16] [#]} Nxd6 {[%emt 0:07:54]} ({Resist} 19... Qxa3 20. Nxf7 Na5 21. Qd1 $11) 20. cxd6 {[%emt 0:01:32]} f6 {[%emt 0:00:24] Black is more active.} 21. exf6 {[%emt 0:02:55]} Qxa3 {[%emt 0:00:30]} 22. g3 {[%emt 0:07:06]} Qxd6 {[%emt 0:00:46]} 23. Bg2 {[%emt 0:02:30]} Rhf8 {[%emt 0:01:59]} 24. O-O {[%emt 0:01:36]} Rxf6 {[%emt 0:00:32]} 25. Be3 {[%emt 0:00:20]} e5 {[%emt 0:21:57] ...d4 would be deadly.} 26. Rfd1 {[%emt 0:00:13]} Be6 {[%emt 0:00:05]} 27. Qb2 {[%emt 0:01:47]} Rf7 {[%emt 0:03:57]} 28. Ra1 {[%emt 0:00:05]} ({White should play} 28. Qb5 $15) 28... Rfd7 {[%emt 0:03:34]} (28... b6 $17 29. Ra6 Rb7) 29. Ra4 $11 {[%emt 0:02:22]} Qc7 {[%emt 0:03:12]} 30. Rc1 {[%emt 0:03:43]} b6 {[%emt 0:02:00]} 31. Ra6 {[%emt 0:02:35][%cal Re3b6] Hoping for Bxb6!} d4 {[%emt 0:02:53]} 32. cxd4 {[%emt 0:00:49]} Bd5 {[%emt 0:00:04] Strongly threatening ...Bxg2.} 33. Qb5 $2 {[%emt 0:02:27][%mdl 8192]} (33. dxe5 $11 Qxe5 34. Qxe5+ Nxe5 35. Bxb6 axb6 36. Bxd5 Rxd5 37. Rxb6+ Ka7 38. Rxh6) 33... Nxd4 {[%emt 0:00:30]} 34. Qd3 $2 {[%emt 0:00:31]} (34. Rxc7 Nxb5 35. Rxd7 Rxd7 36. Bh3) 34... Nf3+ $19 {[%emt 0:03:49]} 35. Bxf3 {[%emt 0:00:22]} Bxf3 {[%emt 0:00:05][%mdl 64] Discovered Attack.   Weighted Error Value: White=0.62/Black=0.10 (very precise)} 0-1

[Event "Maharashtra Challenge Matches 2023"]
[Site "Nagpur"]
[Date "2023.06.03"]
[Round "3.1"]
[White "Vidit, Santosh Gujrathi"]
[Black "Svidler, Peter"]
[Result "1-0"]
[Annotator "TA"]
[ECO "A35"]
[WhiteElo "2731"]
[BlackElo "2683"]
[PlyCount "45"]
[EventDate "2023.06.03"]
[EventType "match"]
[EventCountry "IND"]
[SourceTitle "playchess.com"]
[Source "ChessBase"]
[SourceQuality "1"]
[TimeControl "40/5400+30:1800+30"]

{[%evp 13,45,22,25,22,14,27,17,28,32,27,35,23,52,24,73,23,35,21,55,57,76,65,79,66,67,67,52,52,127,126,132,118,220,222]} 1. Nf3 {[%emt 0:00:49]} Nf6 {[%emt 0:02:02]} 2. c4 {[%emt 0:00:13]} c5 {[%emt 0:00:48]} 3. Nc3 {[%emt 0:00:15]} Nc6 {[%emt 0:02:20]} 4. d4 {[%emt 0:00:12]} cxd4 {[%emt 0:00:04]} 5. Nxd4 {[%emt 0:00:06]} Qb6 {[%emt 0:01:26]} 6. Nb3 {[%emt 0:00:35]} e6 {[%emt 0:00:13]} 7. a3 {[%emt 0:00:30]} d5 {[%emt 0:07:44]} 8. Be3 {[%emt 0:06:28] A31: Symmetrical English: 2 Nf3 Nf6 3 d4.} Qd8 {[%emt 0:06:14]} 9. cxd5 {[%emt 0:00:15]} Nxd5 {[%emt 0:00:13]} 10. Nxd5 {[%emt 0:00:02] The position is equal.} exd5 {[%emt 0:00:09]} 11. g3 {[%emt 0:01:06]} Be7 {[%emt 0:03:11]} 12. Bg2 {[%emt 0:03:36]} Bf6 {[%emt 0:10:30] [#]} (12... Be6 {simplifies} 13. O-O O-O 14. Nc5 Bxc5 15. Bxc5 Re8) 13. Qxd5 $5 $146 {[%emt 0:31:19][%mdl 8] New and interesting.} (13. O-O {simplifies} Be6 14. Nc5 b6 15. Nxe6 fxe6 16. Bf4) ({Predecessor:} 13. Nd4 O-O 14. O-O Re8 15. Re1 Bg4 16. Rc1 Rc8 17. h3 Bh5 18. Qd2 Nxd4 19. Bxd4 Rxc1 20. Rxc1 Rxe2 21. Bxf6 gxf6 {½-½ Ivanchuk,V (2731)-Dobrov,V (2490) Vladimir Petrov Memorial op 2015 (6)}) 13... Bxb2 {[%emt 0:08:11]} (13... Qxd5 $11 14. Bxd5 Bxb2) 14. Ra2 {[%emt 0:04:33]} ({Better is} 14. Qxd8+ $16 Nxd8 15. Ra2) 14... Bc3+ $11 {[%emt 0:00:46]} 15. Bd2 {[%emt 0:00:07]} Bf6 {[%emt 0:12:03] Strongly threatening ...Be6.} 16. Qxd8+ {[%emt 0:04:22]} Nxd8 {[%emt 0:03:51]} 17. Nc5 {[%cal Bb3c5,Bc5a6,Ba6c7,Bc7d5][%mdl 32]} Ne6 {[%emt 0:03:46]} 18. Na6 {[%emt 0:07:15] White has more active pieces. The black rooks are badly placed.} (18. Bxb7 $2 Bxb7 19. Nxb7 Rb8 20. Nd6+ Kd7 $19) (18. Nxb7 $5 {[%cal Rb7d6]} Rb8 19. Bc6+ Bd7 20. Be4 $14 (20. Nd6+ Ke7 $14)) 18... O-O {[%emt 0:01:00]} 19. Bb4 {[%emt 0:07:32]} Rd8 {[%emt 0:00:45]} 20. Rd2 {[%emt 0:09:14]} Nd4 {[%emt 0:08:45]} (20... Rxd2 $14 21. Kxd2 Bd7 22. Bxb7 Rd8) 21. Nc7 $16 {[%emt 0:02:27]} Rb8 {[%emt 0:00:18]} 22. Nd5 {[%emt 0:00:39]} Bf5 {[%emt 0:01:04] [#]} (22... Be6 $16 23. Nxf6+ gxf6) 23. Rxd4 $1 {[%emt 0:01:36][%mdl 576] Deflection.   Weighted Error Value: White=0.08 (flawless) /Black=0.25 (precise)} 1-0

[Event "Maharashtra Challenge Matches 2023"]
[Site "Nagpur"]
[Date "2023.06.03"]
[Round "3.1"]
[White "Short, Nigel D"]
[Black "Sadhwani, Raunak"]
[Result "0-1"]
[Annotator "TA"]
[ECO "B24"]
[WhiteElo "2597"]
[BlackElo "2627"]
[PlyCount "82"]
[EventDate "2023.06.03"]
[EventType "match"]
[EventCountry "IND"]
[SourceTitle "playchess.com"]
[Source "ChessBase"]
[SourceQuality "1"]
[TimeControl "40/5400+30:1800+30"]

{[%evp 10,82,8,14,12,-1,6,0,0,0,0,0,4,-4,0,0,0,0,13,0,8,6,22,0,0,0,0,0,0,0,25,22,55,59,70,43,54,0,0,0,0,0,-7,0,0,-10,0,0,0,-72,-89,-620,-615,-604,-260,-243,-228,-231,-222,-278,-281,-520,-268,-452,-439,-434,-415,-846,-868,-853,-832,-853,-845,-810,-804]} 1. e4 {[%emt 0:00:08]} c5 {[%emt 0:00:10]} 2. Nc3 {[%emt 0:00:12]} Nc6 {[%emt 0:00:07]} 3. Bb5 {[%emt 0:00:10]} Nd4 {[%emt 0:00:11]} 4. Nf3 {[%emt 0:00:06]} e6 {[%emt 0:00:06]} 5. O-O {[%emt 0:00:54]} a6 {[%emt 0:00:07]} 6. Bd3 {[%emt 0:00:19]} Nc6 {[%emt 0:00:03] B30: Sicilian: 2...Nc6 3 Bb5, lines without ...g6.} 7. Nd5 {[%emt 0:03:00]} g6 {[%emt 0:03:37] [#]} 8. Re1 $1 {[%emt 0:00:25][%cal Oa1b1]} Bg7 {[%emt 0:00:28] The position is equal.} (8... d6 9. Ne3) 9. c3 {[%emt 0:00:30][%cal Od3c2]} d6 {[%emt 0:00:30]} 10. Ne3 {[%emt 0:00:32]} Nge7 {[%emt 0:05:07] [#]} 11. a3 $146 {[%emt 0:06:11]} ({Predecessor:} 11. Bc2 e5 12. a3 O-O 13. d3 Kh8 14. b4 b5 15. Bb2 Bb7 16. Bb3 h6 17. Qd2 {0-1 Jones,G (2670)-Navara,D (2697) EU-ch Final Online 2020 (3.4)}) 11... O-O {[%emt 0:04:29]} 12. b4 {[%emt 0:02:39]} b5 {[%emt 0:09:23]} 13. Bf1 {[%emt 0:01:49]} c4 {[%emt 0:01:18]} 14. d4 {[%emt 0:01:06]} cxd3 {[%emt 0:12:49]} 15. Qxd3 {[%emt 0:00:16]} f5 {[%emt 0:00:57]} (15... d5 $5 {[%cal Rd5e4]}) 16. Bb2 {[%emt 0:16:51]} fxe4 {[%emt 0:02:02]} 17. Qxe4 {[%emt 0:00:14]} d5 {[%emt 0:00:15]} 18. Qc2 {[%emt 0:01:16]} Rxf3 {[%emt 0:09:10]} 19. gxf3 {[%emt 0:00:12]} Qf8 $1 {[%emt 0:01:57]} 20. Bg2 {[%emt 0:02:16]} g5 {[%emt 0:04:21]} 21. a4 {[%emt 0:06:37] [#] axb5 is the strong threat.} Rb8 {[%emt 0:00:34]} 22. axb5 axb5 {[%emt 0:00:08]} 23. Nf1 {[%emt 0:05:17]} (23. Qd2 $14) 23... Ng6 $11 {[%emt 0:06:08]} 24. Ng3 {[%emt 0:12:40]} Qf7 {[%emt 0:05:48]} 25. Bc1 {[%emt 0:05:35][%cal Bb2c1,Bc1e3,Be3c5][%mdl 32]} h6 {[%emt 0:04:53]} 26. Be3 {[%emt 0:06:10]} Nh4 {[%emt 0:00:21]} 27. Bc5 {[%emt 0:00:39] Bd6 would be deadly.} Bb7 {[%emt 0:06:25]} 28. Qd3 {[%emt 0:03:45]} Rd8 {[%emt 0:06:46]} 29. Bh1 {[%emt 0:04:50]} (29. Qxb5 Bxc3 30. Qb6 Bxa1 31. Rxa1 Rd7 $17) (29. Ra3 $11) 29... d4 $17 {[%emt 0:03:40]} 30. c4 {[%emt 0:11:02][%mdl 8192] This costs White the game.} (30. Bb6 $17 Rd7 31. Rad1 (31. Qxb5 $2 Nxf3+ 32. Kf1 dxc3 $19)) 30... bxc4 $19 {[%emt 0:04:12]} (30... Ne5 31. Rxe5 bxc4 32. Qxc4 (32. Qe2 $2 d3 $19) 32... Bxe5 33. Ra3 $19) 31. Qxc4 {[%emt 0:00:05]} Ne5 {[%emt 0:00:04]} (31... Nxf3+ 32. Bxf3 Qxf3 33. Rxe6 $17) (31... d3 $142 32. Ra2 Nd4 33. Bxd4 {[%mdl 64] Remove Defender} Rxd4 34. Qxe6 Qxe6 35. Rxe6 Bd5) 32. Rxe5 {[%emt 0:00:07]} Bxe5 {[%emt 0:00:04]} 33. Ra3 {[%emt 0:03:00]} Bg7 {[%emt 0:03:24][%cal Rb7f3]} (33... Nxf3+ 34. Bxf3 Bxg3 35. fxg3 $11) 34. Qe2 {[%emt 0:04:17]} Ng6 {[%emt 0:00:46][%cal Bh4g6,Bg6h4,Bh4f3][%mdl 32]} 35. Nh5 $2 {[%emt 0:00:17]} (35. Ra7 Nf4 36. Qd2) 35... Bh8 {[%emt 0:02:02] Strongly threatening ...Ne5.} 36. f4 $2 {[%emt 0:00:25]} (36. Qf1) 36... Bxh1 {[%emt 0:02:46]} (36... gxf4 37. Bxb7 Qxb7 38. Qg4 $11 (38. Qxe6+ Qf7 $11)) 37. Kxh1 {[%emt 0:00:04]} Qf5 {[%emt 0:00:43] aiming for ...d3.} (37... gxf4 38. Qe4 $17) (37... Nxf4 38. Nxf4 gxf4 39. Qd3 $17) 38. fxg5 {[%emt 0:03:35]} (38. Qd3 $142 Qxd3 39. Rxd3 gxf4 40. Kg2) 38... d3 {[%emt 0:01:30] Black is clearly winning.} ({Worse is} 38... hxg5 39. Qd3 $19) 39. Qd1 {[%emt 0:00:03]} Nh4 {[%emt 0:01:08] ( -> ...Qe4+)} 40. Ng3 {[%emt 0:01:38] Inhibits Qe4+.} Qd5+ {[%emt 0:01:24]} ({Less strong is} 40... Qxg5 41. Rxd3 Rxd3 42. Qxd3 $14) 41. f3 {[%emt 0:30:08]} Nxf3 {[%emt 0:30:11] Weighted Error Value: White=0.64/Black=0.19 (very precise)} ({Stronger than} 41... Qxf3+ 42. Qxf3 Nxf3 43. Ne4 $17) 0-1